Cogmind - Beta 16 @@@ ROGUE MODE // 2026.01.28 @ 20:13:06 Player: Carter Result: Destroyed by H-55 Commando with Gauss Rifle Performance ------------- Evolutions (3) 1500 Regions Visited (7) 1400 Robots Destroyed (20) 100 Value Destroyed (429) 429 Prototype IDs (23) 460 Alien Tech Used (0) 0 Bonus (800) 800 TOTAL SCORE: 4689 Bonus ------- Entered DSFs 500 Aligned with FarCom 300 Cogmind --------- Core Integrity 0/700 Matter 248/300 Energy 100/100 System Corruption 0% Temperature Cool (0) Movement Core (150) Ox2 Location -7/DSF Parts ------- > --- POWER (1) -------- (None) > --- PROPULSION (5) --- (None) > --- UTILITY (5) ------ Advanced Visual Processing Unit Advanced Visual Processing Unit > --- WEAPON (2) ------- Heavy Rocket Launcher > --- INVENTORY (5) ---- Nuclear Core Peak State ------------ > --- POWER ------------ Nuclear Core > --- PROPULSION ------- Light Treads Light Treads Improved Carbon-fiber Leg > --- UTILITY ---------- Compact Matter Pod Advanced Visual Processing Unit Armor Integrity Analyzer Hacking Suite Trap Reconfigurator > --- WEAPON ----------- Heavy Missile Launcher Ripper > --- INVENTORY -------- Nuclear Core Nuclear Core Arc Projector Grenade Launcher Rocket Launcher [Rating: 40] Favorites ----------- Power Ion Engine Engine Ion Engine Power Core Light Nuclear Core Propulsion Light Treads Treads Light Treads Leg Improved Carbon-fiber Leg Flight Unit Surge Thruster Utility Trap Reconfigurator Device Trap Reconfigurator Storage Compact Matter Pod Processor Advanced Visual Processing Unit Hackware Hacking Suite Weapon Ripper Energy Gun Small Laser Energy Cannon Beam Cannon Ballistic Gun Light Assault Rifle Launcher Heavy Missile Launcher Slashing Weapon Ripper Build | -11 -10 -10 -10 -9 -8 -7 -7 ------- Run | Yrd Mat Min Exi Min Mat Fac DSF Slots Evolved 6 | . . . . . 4 2 . Power . | . . . . . . . . Propulsion 3 | . . . . . 2 1 . Utility 3 | . . . . . 2 1 . Weapon . | . . . . . . . . Parts Attached 36 | 6 2 5 1 6 3 . 13 Power 8 | 2 . . . 1 1 . 4 Engine 5 | 2 . . . . . . 3 Core 3 | . . . . 1 1 . 1 Reactor . | . . . . . . . . Propulsion 7 | 2 . . . 2 . . 3 Treads 4 | 2 . . . 2 . . . Leg 1 | . . . . . . . 1 Wheel . | . . . . . . . . Hover . | . . . . . . . . Flight 2 | . . . . . . . 2 Utility 10 | . 1 3 1 1 2 . 2 Device 3 | . . 2 1 . . . . Storage 3 | . 1 1 . 1 . . . Processor 3 | . . . . . 1 . 2 Hackware 1 | . . . . . 1 . . Protection . | . . . . . . . . Artifact . | . . . . . . . . Weapon 11 | 2 1 2 . 2 . . 4 Energy Gun 3 | 1 . . . 1 . . 1 Energy Cannon 1 | . 1 . . . . . . Ballistic Gun 2 | 1 . 1 . . . . . Ballistic Cannon . | . . . . . . . . Launcher 4 | . . . . 1 . . 3 Special Weapon . | . . . . . . . . Impact Weapon . | . . . . . . . . Slashing Weapon 1 | . . 1 . . . . . Piercing Weapon . | . . . . . . . . Special Melee Weapon . | . . . . . . . . Unidentified Prototypes . | . . . . . . . . Parts Lost 15 | . . . . 3 . . 12 Power 3 | . . . . 1 . . 2 Propulsion 4 | . . . . . . . 4 Utility 3 | . . . . 1 . . 2 Weapon 5 | . . . . 1 . . 4 Highest Loss Streak 7 | . . . . 3 . . 7 To Critical Strikes . | . . . . . . . . Average Backups 3 | . 1 2 3 4 5 4 3 Power 1 | . 1 1 1 . 1 1 1 Propulsion . | . . . . . 1 . . Utility . | . . . . . . . . Weapon 2 | . . 1 2 3 3 3 1 Tool/Special . | . . . . . . . . Unused Backups 5 | . . . . 1 1 1 2 Power 4 | . . . . . 1 1 2 Propulsion . | . . . . . . . . Utility . | . . . . . . . . Weapon 1 | . . . . 1 . . . Tool/Special . | . . . . . . . . Average Slot Usage (%) 91 | . 81 99 100 90 78 69 70 Engine 7 | . 14 14 14 . . . 3 Core 3 | . . . . 7 9 7 2 Treads 25 | . 28 28 28 28 18 15 8 Device 12 | . . 13 17 14 9 7 6 Storage 11 | . 11 14 10 12 9 7 6 Processor 2 | . . . . . 7 7 13 Hackware 1 | . . . . . 8 7 6 Energy Gun 2 | . 14 5 . 3 . . 1 Energy Cannon 1 | . 9 7 . . . . . Ballistic Gun 5 | . 4 6 14 . . . . Launcher 4 | . . . . 9 9 7 4 Slashing Weapon 10 | . . 8 14 14 9 7 6 Peak Build Rating 40 | 5 6 12 20 26 32 32 40 Average Rating 19 | 4 5 10 13 23 31 32 34 On Entrance 16 | . 5 6 12 20 26 32 32 Avg Prop Armor Cover (%) 23 | . . . 26 30 . . 19 Naked Turns . | . . . . . . . . Heaviest Build 22 | 7 19 21 12 17 19 19 22 Greatest Support 40 | 40 40 40 40 40 40 40 40 Greatest Overweight (x) 6 | . . . 3 3 . . 6 Average Overweight (x) . | . . . . . . . 1 Largest Inventory Capacity 10 | 5 10 10 5 5 5 5 5 Average Capacity 5 | 5 9 5 5 5 5 5 5 Most Carried 5 | 1 2 5 5 5 5 5 5 Average Carried 4 | . 1 4 5 4 5 4 3 Final Capacity 10 | 5 10 5 5 5 5 5 5 Final Carried 5 | 1 2 5 5 5 5 5 1 Class Distribution -------------------- 100% | Mutant Dominant Class ---------------- Mutant | -10/Materials Mutant | -10/Mines Mutant | -10/Exiles Mutant | -9/Mines Mutant | -8/Materials Mutant | -7/Factory Mutant | -7/DSF Resources | -11 -10 -10 -10 -9 -8 -7 -7 ----------- Run | Yrd Mat Min Exi Min Mat Fac DSF Matter Collected 655 | 231 . 199 10 74 30 . 111 Remotely . | . . . . . . . . Salvage Created 552 | . . 200 . 46 93 . 213 Parts 37 | . . 12 . 4 4 . 17 Haulers Intercepted . | . . . . . . . . Recyclers Shooed . | . . . . . . . . Parts Field Recycled . | . . . . . . . . Retrieved Matter . | . . . . . . . . Parts Self-Destructed . | . . . . . . . . Prevented . | . . . . . . . . Parts Restored . | . . . . . . . . Kills | -11 -10 -10 -10 -9 -8 -7 -7 ------- Run | Yrd Mat Min Exi Min Mat Fac DSF Combat Hostiles Destroyed 13 | . . 4 . 1 1 . 7 Melee 8 | . . 4 . . 1 . 3 AOE 5 | . . . . 1 . . 4 Classes Destroyed 9 | . . 4 . 1 1 . 3 Worker 5 | . . 2 . 1 2 . . Tunneler 3 | . . 2 . 1 . . . Swarmer 2 | . . 2 . . . . . Cutter 3 | . . . . . . . 3 Grunt 4 | . . 2 . . . . 2 Duelist 1 | . . . . . . . 1 Sentry 1 | . . . . . 1 . . Specialist 1 | . . . . . . . 1 Assembled 1 | . . . . 1 . . . Best Kill Streak 3 | . . 2 . 2 3 . 3 Combat Bots Only 3 | . . 2 . 1 1 . 3 Max Kills in Single Turn 2 | . . 1 . 2 1 . 2 Gunslinging . | . . . . . . . . Exploded 2 | . . . . 1 . . 2 Melee 1 | . . 1 . . 1 . 1 Uniques/NPCs Destroyed . | . . . . . . . . Combat | -11 -10 -10 -10 -9 -8 -7 -7 -------- Run | Yrd Mat Min Exi Min Mat Fac DSF Hostile Shots Fired 152 | . . 27 . 17 6 . 102 Missed 41 | . . 5 . 3 . . 33 Hits 111 | . . 22 . 14 6 . 69 Melee 11 | . . . . . . . 11 Projectile 100 | . . 22 . 14 6 . 58 AOE 5 | . . . . 4 . . 1 Critical Strikes 9 | . . . . 1 1 . 7 Damage Taken 2239 | . . 207 . 342 91 . 1599 Core 817 | . . 33 . 70 . . 714 Absorbed by Shields . | . . . . . . . . Core Remaining (%) 86 | 100 . . . 58 100 . . Volleys Fired 17 | . . 4 . 1 . . 12 Largest 2 | . . 2 . 1 . . 1 Hottest 100 | . . 100 . 39 . . 55 Shots Fired 21 | . . 8 . 1 . . 12 Gun 5 | . . 4 . . . . 1 Cannon 4 | . . 4 . . . . . Launcher 12 | . . . . 1 . . 11 Special . | . . . . . . . . Kinetic . | . . . . . . . . Thermal 8 | . . 8 . . . . . Explosive 12 | . . . . 1 . . 11 Electromagnetic 1 | . . . . . . . 1 Robot Hit Streak 3 | . . 3 . 3 . . 2 Robot Miss Streak 2 | . . 1 . . . . 2 Penetration Max . | . . . . . . . . Secondary Targets . | . . . . . . . . Shots Hit Robots 40 | . . 13 . 5 4 . 18 Core Hits 36 | . . 7 . 3 2 . 24 Critical Kills . | . . . . . . . . Critical Parts Destroyed . | . . . . . . . . Critical Strikes . | . . . . . . . . Melee Attacks 36 | . . 13 . 5 4 . 14 Impact . | . . . . . . . . Slashing 36 | . . 13 . 5 4 . 14 Piercing . | . . . . . . . . Sneak Attacks 6 | . . 2 . 2 2 . . Combat Hostiles . | . . . . . . . . Follow-up Attacks . | . . . . . . . . Damage Inflicted 2019 | . . 458 . 315 231 . 1015 Guns 34 | . . 34 . . . . . Cannons 36 | . . 36 . . . . . Explosions 757 | . . . . 98 . . 659 Melee 1192 | . . 388 . 217 231 . 356 Ramming . | . . . . . . . . Kinetic . | . . . . . . . . Thermal 70 | . . 70 . . . . . Explosive 757 | . . . . 98 . . 659 Electromagnetic . | . . . . . . . . Impact . | . . . . . . . . Slashing 1192 | . . 388 . 217 231 . 356 Piercing . | . . . . . . . . Highest Corruption . | . . . . . . . . Average Corruption . | . . . . . . . . Corruption Purged . | . . . . . . . . Corruption Blocked . | . . . . . . . . Overload Shots . | . . . . . . . . Overflow Damage 190 | . . 94 . 52 40 . 4 Projectiles . | . . . . . . . . Explosions . | . . . . . . . . Melee 190 | . . 94 . 52 40 . 4 Knockbacks . | . . . . . . . . Impact . | . . . . . . . . Kinetic . | . . . . . . . . Secondary . | . . . . . . . . Self-Inflicted Damage 68 | . . . . 26 . . 42 Shots 3 | . . . . 1 . . 2 Rammed . | . . . . . . . . Targets Rammed . | . . . . . . . . Kicked . | . . . . . . . . Crushed . | . . . . . . . . Highest Temperature 78 | . . 78 . 2 5 . . Average Temperature 35 | . . 40 . 1 5 . . Received Heat Transfer 405 | . . 60 . 66 45 . 234 Siege Activations . | . . . . . . . . Martial Activations . | . . . . . . . . Shielding Activations . | . . . . . . . . Robots Disrupted . | . . . . . . . . Combat Hostiles . | . . . . . . . . Robots Corrupted . | . . . . . . . . Combat Hostiles . | . . . . . . . . Parts Fried . | . . . . . . . . Impact Corruptions . | . . . . . . . . Robots Melted . | . . . . . . . . Combat Hostiles . | . . . . . . . . Parts Melted 1 | . . 1 . . . . . Heat Transferred 149 | . . 149 . . . . . Parts Sabotaged . | . . . . . . . . Parts Stolen . | . . . . . . . . Parts Stripped . | . . . . . . . . Power Chain Reactions . | . . . . . . . . Alert | -11 -10 -10 -10 -9 -8 -7 -7 ------- Run | Yrd Mat Min Exi Min Mat Fac DSF Maximum Alert Level . | . . . . . . . . Low Security (%) 100 | 100 100 100 . 100 100 100 100 Level 1 . | . . . . . . . . Level 2 . | . . . . . . . . Level 3 . | . . . . . . . . Level 4 . | . . . . . . . . Level 5 . | . . . . . . . . High Security . | . . . . . . . . Max Security . | . . . . . . . . Peak Influence 98 | . . 50 . 21 32 . 98 Initial 2 | . . . . . . . 2 Average 5 | . . 6 . 1 3 . 33 Influence Increases 448 | . . 120 . 86 40 4 198 Destroy 0b10 Robot/C 240 | . . 80 . . 20 . 140 Destroy 0b10 Robot/NC 45 | . . 20 . 10 10 . 5 Destroy Leader 50 | . . 20 . . 10 . 20 Successful Hack 4 | . . . . . . 4 . Destroy Structure 49 | . . . . 16 . . 33 Lose Combat Pursuer 60 | . . . . 60 . . . Influence Decreases 358 | . . 120 . 86 40 . 112 Entered New Map 2 | . . . . . . . 2 Time Decay 246 | . . 120 . 86 40 . . Lost Part 110 | . . . . . . . 110 Squads Dispatched 3 | . . . . 1 . . 2 Investigation 1 | . . . . 1 . . . Extermination . | . . . . . . . . Reinforcement 2 | . . . . . . . 2 Assault . | . . . . . . . . Garrison . | . . . . . . . . Intercept . | . . . . . . . . Searches Triggered . | . . . . . . . . Construction Impeded . | . . . . . . . . Haulers Reinforced . | . . . . . . . . Active Scanning Responses . | . . . . . . . . Cargo Convoy Interrupts . | . . . . . . . . Stealth | -11 -10 -10 -10 -9 -8 -7 -7 --------- Run | Yrd Mat Min Exi Min Mat Fac DSF Distress Signals 2 | . . . . 2 . . . Communications Jammed . | . . . . . . . . Distress Signals . | . . . . . . . . Times Spotted 36 | . . 5 . 20 2 . 9 Peak Tracking Total 24 | . . 3 . 24 2 . 4 Tactical Retreats 6 | . . . . 6 . . . Traps | -11 -10 -10 -10 -9 -8 -7 -7 ------- Run | Yrd Mat Min Exi Min Mat Fac DSF Traps Triggered . | . . . . . . . . Indirectly . | . . . . . . . . Trap Hack Attempts . | . . . . . . . . Triggered . | . . . . . . . . Disarmed . | . . . . . . . . Reprogrammed . | . . . . . . . . Reused . | . . . . . . . . Traps Reconfigurated 9 | . . . . . 6 1 2 Traps Extracted . | . . . . . . . . Installed . | . . . . . . . . Triggered . | . . . . . . . . Most Traps Carried 3 | . . 3 2 2 . . . Machines | -11 -10 -10 -10 -9 -8 -7 -7 ---------- Run | Yrd Mat Min Exi Min Mat Fac DSF Machines Disabled . | . . . . . . . . Max in Single Turn . | . . . . . . . . Machines Repaired . | . . . . . . . . Machines Dismantled . | . . . . . . . . Machines Sabotaged . | . . . . . . . . Overloaded Fab Kills . | . . . . . . . . Hacking | -11 -10 -10 -10 -9 -8 -7 -7 --------- Run | Yrd Mat Min Exi Min Mat Fac DSF Machines Accessed 5 | . 1 . 2 1 . 1 . Terminals 2 | . 1 . . . . 1 . Fabricators . | . . . . . . . . Repair Stations . | . . . . . . . . Recycling Units . | . . . . . . . . Scanalyzers . | . . . . . . . . Garrison Access . | . . . . . . . . Total Hacks 7 | . 2 . 3 1 . 1 . Successful 6 | . 1 . 3 1 . 1 . Failed 1 | . 1 . . . . . . Catastrophic . | . . . . . . . . Database Lockouts . | . . . . . . . . Manual 2 | . . . 2 . . . . Terminals 3 | . 2 . . . . 1 . Fabricators . | . . . . . . . . Repair Stations . | . . . . . . . . Recycling Units . | . . . . . . . . Scanalyzers . | . . . . . . . . Garrison Access . | . . . . . . . . Terminal Hacks 6 | . 1 . 3 1 . 1 . Record 3 | . 1 . 2 . . . . Open Door 1 | . . . . 1 . . . Open DSF 1 | . . . . . . 1 . Proto ID Catalog 1 | . . . 1 . . . . Fabricator Hacks . | . . . . . . . . Repair Station Hacks . | . . . . . . . . Recycling Unit Hacks . | . . . . . . . . Scanalyzer . | . . . . . . . . Garrison Access Hacks . | . . . . . . . . Unauthorized Hacks . | . . . . . . . . Terminals . | . . . . . . . . Fabricators . | . . . . . . . . Repair Stations . | . . . . . . . . Recycling Units . | . . . . . . . . Scanalyzers . | . . . . . . . . Garrison Access . | . . . . . . . . Data Cores Recovered . | . . . . . . . . Used . | . . . . . . . . Hacking Detections 2 | . 1 . . . . 1 . Full Trace Events . | . . . . . . . . Feedback Events . | . . . . . . . . Feedback Blocked . | . . . . . . . . Robot Schematics Acquired . | . . . . . . . . Robots Built . | . . . . . . . . Authchips . | . . . . . . . . Time . | . . . . . . . . Total Robot Build Rating . | . . . . . . . . Part Schematics Acquired . | . . . . . . . . Parts Built . | . . . . . . . . Authchips . | . . . . . . . . Time . | . . . . . . . . Total Part Build Rating . | . . . . . . . . Part Studies Acquired . | . . . . . . . . Parts Repaired . | . . . . . . . . Time . | . . . . . . . . Parts Recycled . | . . . . . . . . Recycled Matter . | . . . . . . . . Retrieved Matter . | . . . . . . . . Retrieved Components . | . . . . . . . . Parts Scanalyzed . | . . . . . . . . Part Schematics Acquired . | . . . . . . . . Parts Damaged . | . . . . . . . . Bothacking | -11 -10 -10 -10 -9 -8 -7 -7 ------------ Run | Yrd Mat Min Exi Min Mat Fac DSF Used RIF Installer . | . . . . . . . . Robots Hacked . | . . . . . . . . Non-combat . | . . . . . . . . Combat . | . . . . . . . . Robot Hacks Applied . | . . . . . . . . Relay Couplers Released . | . . . . . . . . Fabnet Peak Effective % . | . . . . . . . . Robots Rewired . | . . . . . . . . Allies Hacked . | . . . . . . . . Hacks Repelled . | . . . . . . . . Allies | -11 -10 -10 -10 -9 -8 -7 -7 -------- Run | Yrd Mat Min Exi Min Mat Fac DSF Total Allies . | . . . . . . . . Largest Group . | . . . . . . . . Highest-Rated Group . | . . . . . . . . Highest-Rated Ally . | . . . . . . . . Total Orders . | . . . . . . . . Ally Attacks . | . . . . . . . . Total Damage . | . . . . . . . . Kills . | . . . . . . . . Allies Corrupted . | . . . . . . . . Allies Melted . | . . . . . . . . Intel | -11 -10 -10 -10 -9 -8 -7 -7 ------- Run | Yrd Mat Min Exi Min Mat Fac DSF Active Infowar (turns) 1605 | . . 682 . . 480 145 298 Optics 923 | . . . . . 480 145 298 Terrain 682 | . . 682 . . . . . Robot Analysis Total . | . . . . . . . . Derelict Logs Recovered 4 | . . 2 . 2 . . . Drone Launches . | . . . . . . . . Drone Recoveries . | . . . . . . . . Exploration | -11 -10 -10 -10 -9 -8 -7 -7 ------------- Run | Yrd Mat Min Exi Min Mat Fac DSF Turns Passed 4690 | 112 132 1047 1118 1274 564 145 298 Spaces Moved 2662 | 67 81 618 667 761 256 90 122 Core 173 | 3 . . 128 13 . . 29 Treads 2408 | 64 81 618 539 748 256 90 12 Legs 75 | . . . . . . . 75 Wheels . | . . . . . . . . Hover . | . . . . . . . . Flight 6 | . . . . . . . 6 Fastest Speed 50 | 50 160 160 160 100 160 160 50 Average Speed 162 | 155 160 160 167 159 160 160 172 Slowest Speed 350 | 160 160 160 200 200 160 160 350 Overloaded Moves . | . . . . . . . . Propulsion Burnouts . | . . . . . . . . Robots Hopped . | . . . . . . . . Potential Cave-ins . | . . . . . . . . Cave-ins Triggered . | . . . . . . . . Exploration Rate (%) 46 | 5 19 95 92 86 22 3 53 Regions Visited 7 Branch Regions 3 Pre-discovered Areas 4 | . . . 1 3 . . . Known Exits Taken 1 | . . . . . . 1 . Unknown Exits Taken 6 | 1 1 1 1 1 1 . . Scrap Searched 4 | . . 1 . 3 . . . Spaces Dug . | . . . . . . . . Terrain Destroyed 61 | . . . . 21 . . 40 Melee . | . . . . . . . . Projectile . | . . . . . . . . AOE 61 | . . . . 21 . . 40 Terrain Rammed . | . . . . . . . . Walls Destroyed . | . . . . . . . . Machines Disabled . | . . . . . . . . Actions | -11 -10 -10 -10 -9 -8 -7 -7 --------- Run | Yrd Mat Min Exi Min Mat Fac DSF Total 2958 | 72 83 647 667 815 406 93 175 Wait 185 | . . 3 . 30 141 . 11 Move 2655 | 66 80 617 666 760 255 89 122 Hop . | . . . . . . . . Pick Up 13 | . . 4 . 5 1 2 1 Fast Attach 19 | 5 2 1 . 4 2 . 5 Attach 4 | . . . . . . . 4 Detach 1 | . 1 . . . . . . Swap 13 | 1 . 4 1 2 1 . 4 Drop 15 | . . 1 . 8 2 2 2 Fire 17 | . . 4 . 1 . . 12 Melee 36 | . . 13 . 5 4 . 14 Ram . | . . . . . . . . Kick . | . . . . . . . . Crush . | . . . . . . . . Escape Stasis . | . . . . . . . . Rewire . | . . . . . . . . Trap . | . . . . . . . . Miscellaneous . | . . . . . . . . Route ------- -11/Scrapyard -10/Materials -10/Mines (discovered 3 exits: [*Mat x2] / *Exi) -10/Exiles -9/Mines -8/Materials -7/Factory -7/DSF History --------- Turn | Location | Event 14 | -11/Scrapyard | Discovered new exit (range 15) 113 | -11/Scrapyard | Entered Materials 226 | -10/Materials | Discovered new exit (range 10) 245 | -10/Materials | Entered Mines 322 | -10/Mines | Build established: Mutant 374 | -10/Mines | Discovered new exit (range 7) 507 | -10/Mines | Learned Materials trap positions 550 | -10/Mines | Found a hidden stash of uninstalled traps 659 | -10/Mines | A weapon hastily lodged in a ceiling crevice suddenly fell to the ground 761 | -10/Mines | Learned Materials stockpile data 801 | -10/Mines | Discovered new exit (range 10) 1284 | -10/Mines | Deemed a non-threat by the Exiles lab entrance 1286 | -10/Mines | Discovered new exit (range 5) 1292 | -10/Mines | Entered Exiles 1334 | -10/Exiles | Met 8R-AWN 1369 | -10/Exiles | Met EX-HEX 1467 | -10/Exiles | Met EX-DEC 1557 | -10/Exiles | Visited The Gauntlet 1806 | -10/Exiles | Learned location of Zion (-7) 1876 | -10/Exiles | Discovered new exit (range 15) 2019 | -10/Exiles | Met EX-BIN 2067 | -10/Exiles | Aligned with FarCom system 2068 | -10/Exiles | Given EX-Vault access code 2142 | -10/Exiles | Opened EX-Vault 2169 | -10/Exiles | Found Trap Reconfigurator 2242 | -10/Exiles | Warned to stay clear of 0b10 Research branches 2410 | -10/Exiles | Left Exiles lab with Trap Reconfigurator 2410 | -10/Exiles | Entered Mines 2411 | -9/Mines | Assembled infested the area 2454 | -9/Mines | Lost 3 parts (1p1u1w) 2772 | -9/Mines | Met a Derelict shopkeep closing up shop 3098 | -9/Mines | Learned location of Storage (-9) 3121 | -9/Mines | Joined a pair of Derelicts in attacking an 0b10 outpost 3584 | -9/Mines | Discovered new exit (range 9) 3589 | -9/Mines | Received a Rocket Launcher from a helpful Derelict 3684 | -9/Mines | Entered Materials 3684 | -8/Materials | Evolved 4 slots: Propulsion x2, Utility x2 3685 | -8/Materials | Loaded intel: 25 trap records 4224 | -8/Materials | Discovered new exit (range 14) 4248 | -8/Materials | Entered Factory 4248 | -7/Factory | Evolved 2 slots: Propulsion x1, Utility x1 4393 | -7/Factory | Identified exit to DSF 4393 | -7/Factory | Entered DSF 4534 | -7/DSF | Additional patrols routed to DSF 4637 | -7/DSF | Lost 7 parts (4n3w) 4666 | -7/DSF | Core integrity fell below 50% 4674 | -7/DSF | Core integrity fell below 20% 4691 | -7/DSF | Destroyed by H-55 Commando with Gauss Rifle Last Messages --------------- 04664_ Critical hit (Burn: +37). 04665_ Arc Projector severed. 04667_ Slug penetrates Wall. 04667_ Trap Reconfigurator severed. 04669_ Lgt. Deuterium Engine destroyed. 04672_ Destroyed Carbon-fiber Leg. 04672_ Critical hit (Burn: +37). 04673_ Hacking Suite destroyed. 04673_ Penetrated by Slug. 04673_ Ripper destroyed. 04676_ Slug penetrates Wall. 04679_ Penetrated by Slug. 04679_ Com. Matter Pod destroyed. 04681_ Imp. Deuterium Engine destroyed. 04682_ Slug penetrates Wall. 04685_ Slug penetrates L-41 Fighter. 04685_ Acquired Hvy. Rocket Launcher. [Achievement: Hydra] 04688_ L-41 Fighter destroyed. 04690_ G-47 Trooper destroyed. Map ----- +----------------------------------------------------+ | ?????????????????????????????????????????????? | | ?????????????????????????????????????????????? | | ????????????????????#[[??????????????????????? | | ????????????????????#[[ ?????????????????????? | | ?????????????????????[[ ???????????????????? | | ??????????????????????# ####??####?######??? | | ?????????????????????## !!?# ?# !!#??? | | ??????????????????!!## !!# ## !/#??? | | ?????????????????? =% / #??? | | ?????????????????? % / %%///##?? | | ?????????????????? / =/"### | | ?????????????????????# a # ! " # | | ??????????????????????# # # # %*= "### | | ????????????????????### ###???###### ""#?? | | ?????????????????????!! ]]???????# * ###?? | | ?????????????????????!! ]]???????#*** #???? | | ??????????????????????! ]????????#** #???? | | ????????????????????### ###??????### ##???? | | ????????????????????#!! **#?#????# *#???? | | ????????????????????#!! **# ###??# * #???? | | ?????????????????????!! ** # ###### ##???? | | ?????????????????????? #**### ###??? | | ????????????????????## #**## ""#### | | ????????????????????# % % [ * """""# | | ????????????????????# !! h ![! ""##"# | | ????????????????????#@] ***# ##"""""#??? | | ????????????????????#]]^^ ######"""""#??? | | ????????????????????#### #????##"####??? | | ????????????????????????? ##?????#"#?????? | | ??????????????????????????#####??????#""?????? | | ?????????????????????????????????????####????? | | ?????????????????????????????????????????????? | | ?????????????????????????????????????????????? | | ?????????????????????????????????????????????? | | ?????????????????????????????????????????????? | | | | | | | | | | | | | | | | | | | | | | | | | | | | | | | +----------------------------------------------------+ Best States ------------- Heat Dissipation 39 Energy Generation 16 Energy Capacity 290 Matter Stores 450 Matter Capacity 450 Sight Range 20 Terrain Scan Range 16 Terrain Scan Density 10 Evasion (%) 55 Armor Integrity Analysis 30 Recoil Reduction 2 Offensive Hacking 10 Item Schematics ----------------- None Robot Schematics ------------------ None Fabricated ------------ Nothing Repaired ---------- Nothing Studied --------- None Alien Tech Used ----------------- None Achievements -------------- Hydra Sixth Sense Spot Them First Challenges ------------ None Game ------ Seed MagneticArmageddonRay Manual? 0 Play Time 00:40:12 Cumulative 8.4 hours Start 2026.01.28 @ 19:35:13 End 2026.01.28 @ 20:13:06 Sessions 1 Manual Loads 0 Difficulty Rogue Special Mode None Game No. 16 Rogue 16 Adventurer 0 Explorer 0 Win Type - Total 0 Types 0/0/0/0/0/0/0/0/0/0 Lore% 3 Gallery% 16 Achievement% 11 Wizard Run 0 Options --------- Layout 2 ASCII 0 Keyboard 1 Movement Vi Keybinds 0 Fullscreen 1 Font 24/Smallcaps Map View 25x22 Zoom Use 28% Tactical HUD 1 Map Filters NONE Filters NONE Steam 1 RUN: 374154fb-7e36-420d-a5ed-5006c2b5d9ce